bitfinex/quotes_ETHUSD_20260202
["timestamp","ask_amount","ask_price","bid_price","bid_amount"]
[1770040983629,14.54649618,2327.7,2326.9,0.001]
[1770040983828,12.48924814,2327.6,2326.9,0.001]
[1770040985447,2.05724804,2327.7,2326.9,0.001]
[1770040985448,1.15624804,2327.7,2326.9,0.001]
[1770040985651,1.15624804,2327.8,2326.9,0.001]
[1770040985837,13.64549618,2328.0,2326.9,0.001]
[1770040986142,12.48924814,2328.0,2326.9,0.001]
[1770040986341,12.48924814,2327.9,2326.9,0.001]
[1770040987245,1.15624804,2328.1,2326.9,11.92370077]
[1770040987454,0.0011,2328.4,2327.1,11.92270077]
[1770040988321,0.0011,2328.4,2327.0,0.901]
[1770040988662,1.15624804,2328.3,2326.9,0.001]
[1770040988963,13.64549618,2328.2,2326.9,0.001]
[1770040989135,1.15624804,2328.2,2326.9,11.92370077]
[1770040989465,0.0011,2328.4,2326.9,11.92370077]
[1770040990950,0.0011,2328.4,2327.0,12.99704541]
[1770040991248,0.0011,2328.4,2326.9,4.29844038]
[1770040991249,0.92321457,2328.3,2326.9,0.001]
[1770040991453,0.92321457,2328.2,2326.9,0.001]
[1770040991824,0.92321457,2328.1,2326.9,0.001]
[1770040992228,0.92321457,2328.1,2326.9,1.07537028]
[1770040992423,1.15734804,2328.4,2326.9,12.99807105]
[1770040992734,0.0011,2328.4,2326.9,12.99807105]
[1770040992945,0.0011,2328.4,2327.3,11.92270077]
[1770040994447,0.0011,2328.4,2327.2,1.07425232]
[1770040994753,0.0011,2328.4,2327.2,12.99695309]
[1770040996072,0.0011,2328.2,2327.2,12.99695309]
[1770040997255,0.0011,2328.6,2327.2,12.99695309]
[1770040997256,0.0011,2328.6,2327.3,11.92270077]
[1770040997463,0.0011,2328.6,2327.5,11.92270077]
[1770040997629,0.0011,2328.6,2327.6,0.901]
[1770040998237,0.00080441,2328.7,2327.6,12.82370077]
[1770040998437,0.0011,2329.6,2328.1,11.92270077]
[1770040998655,0.0011,2329.6,2328.2,11.92350559]
[1770040998959,0.92393642,2329.5,2328.3,2.09335056]
[1770040999122,0.0011,2329.6,2328.3,3.16707066]
[1770040999327,0.0011,2329.6,2328.3,15.08977143]
[1770041001136,0.92276775,2329.5,2328.3,2.09335056]
[1770041001458,12.49034814,2329.6,2328.3,0.901]
[1770041001646,12.34789602,2329.4,2328.3,0.901]
[1770041001835,12.34789602,2329.2,2328.3,0.901]
[1770041002238,1.15624804,2329.5,2328.3,0.901]
[1770041002442,0.92228737,2329.4,2328.3,0.901]
[1770041002629,12.34899602,2329.6,2328.3,0.901]
[1770041002826,0.92224966,2329.5,2328.3,0.901]
[1770041003172,12.34899602,2329.6,2328.3,0.901]
[1770041003173,0.92224966,2329.4,2328.3,0.901]
[1770041003339,0.0011,2329.6,2328.3,0.901]
[1770041003661,0.0011,2329.6,2328.3,14.42050148]
[1770041004760,0.0011,2329.6,2328.3,12.44575907]
[1770041004928,0.0011,2329.6,2328.4,2.14565639]
[1770041005363,0.0011,2329.6,2328.5,1.07365256]
[1770041005745,0.0011,2329.6,2328.4,3.21933962]
[1770041006390,0.0011,2329.6,2328.4,2.14565639]
[1770041006533,12.34899602,2329.6,2328.4,0.901]
[1770041006733,12.34789602,2329.4,2328.4,0.901]
[1770041006968,12.34789602,2329.2,2328.4,0.901]
[1770041008335,12.34899602,2329.6,2328.4,0.901]
[1770041008680,13.26838125,2329.5,2328.4,0.901]
[1770041008977,13.26838125,2329.5,2328.2,0.00080482]
[1770041008978,12.34789602,2329.3,2328.2,0.00080482]
[1770041009179,1.02288523,2329.4,2328.2,0.00080482]
[1770041009180,12.34789602,2329.1,2328.2,0.00080482]
[1770041010251,1.25974804,2329.4,2328.2,0.00080482]
[1770041010449,0.0011,2329.4,2328.2,0.00080482]
[1770041010664,12.34789602,2329.2,2328.2,0.00080482]
[1770041010866,12.34789602,2329.1,2328.2,0.00080482]
[1770041011182,13.26862765,2329.0,2328.2,0.00080482]
[1770041011488,12.34789602,2328.8,2327.8,0.06523502]
[1770041012377,12.34789602,2328.6,2327.8,0.06523502]
[1770041014866,1.53749273,2329.0,2327.8,0.06523502]
[1770041014867,13.27023231,2328.5,2327.8,0.06523502]
[1770041015062,12.34789602,2328.5,2327.8,0.06523502]
[1770041016182,0.92325783,2328.4,2327.8,0.06523502]
[1770041016350,12.34789602,2328.5,2327.8,0.06523502]
[1770041016550,13.50414406,2328.3,2327.3,0.001]
[1770041016795,2.56317319,2328.4,2327.3,0.001]
[1770041016796,12.34789602,2328.1,2327.3,0.001]
[1770041016956,12.34789602,2327.9,2327.3,0.001]
[1770041017151,13.27117648,2327.8,2327.1,0.001]
[1770041017355,13.50414406,2328.1,2327.1,0.001]
[1770041017579,12.34789602,2327.9,2327.1,0.001]
[1770041017784,0.92352938,2327.8,2327.1,0.001]
[1770041018280,13.2714254,2327.8,2327.0,0.001]
[1770041018455,0.92352938,2327.7,2327.0,0.001]
[1770041018660,0.92352938,2327.6,2327.0,0.001]
[1770041018912,12.34789602,2327.8,2327.0,0.001]
[1770041019068,13.27122115,2327.7,2327.0,0.001]
[1770041019275,13.27122115,2327.6,2327.0,0.001]
[1770041019495,0.92332513,2327.5,2327.0,0.001]
[1770041019662,12.34789602,2327.6,2327.0,0.001]
[1770041020008,1.15624804,2327.9,2327.0,0.001]
[1770041020189,0.9230421,2327.8,2327.0,0.001]
[1770041020504,1.15624804,2327.9,2327.0,0.001]
[1770041020505,0.9230421,2327.7,2327.0,0.001]
[1770041020673,0.9230421,2327.6,2327.0,0.001]
[1770041020860,12.34789602,2327.6,2327.0,0.001]
[1770041021460,12.34789602,2327.6,2326.5,0.001]
[1770041021766,12.34789602,2327.6,2325.6,12.44575907]
[1770041021767,12.34789602,2327.3,2325.6,12.44575907]
[1770041021964,0.92220535,2327.2,2325.8,1.07489198]
[1770041022164,0.92220535,2327.2,2325.8,1.07485585]
[1770041022474,0.92220535,2327.2,2325.7,1.07492214]
[1770041022680,12.34789602,2327.3,2326.1,0.00318801]
[1770041023057,12.34789602,2327.6,2326.1,0.00318801]
[1770041023263,13.2694504,2327.5,2326.1,1.7854993]
[1770041023458,0.92106063,2327.4,2326.1,1.7854993]
[1770041023658,12.34789602,2327.5,2326.1,1.7854993]
[1770041023659,0.92109671,2327.3,2326.1,1.7854993]
[1770041023966,12.34789602,2327.5,2326.1,1.7854993]
[1770041024184,12.34789602,2327.3,2326.1,0.00318801]
[1770041025362,12.34789602,2327.1,2326.1,0.00318801]
[1770041025876,12.34789602,2326.9,2326.1,0.00318801]
[1770041026797,12.34789602,2326.9,2325.4,1.0124021]
[1770041027374,11.96423866,2326.8,2325.4,1.0124021]
[1770041027709,11.96423866,2326.7,2325.4,2.35821822]
[1770041028207,0.1024,2327.2,2325.5,12.77803766]
[1770041028366,0.1024,2327.3,2325.7,12.77803766]
[1770041028562,0.1024,2327.3,2325.9,12.77803766]
[1770041028802,12.86523866,2327.4,2325.9,12.77803766]
[1770041028999,12.06663866,2327.7,2325.9,12.77803766]
[1770041030425,0.0008028,2328.0,2326.1,12.77803766]
[1770041032518,0.0008028,2328.0,2326.3,11.99669987]
[1770041032685,0.0008028,2328.0,2326.5,11.99669987]
[1770041033085,0.0011,2327.6,2326.5,11.99669987]
[1770041033821,0.0011,2327.8,2326.5,11.99669987]
[1770041034551,0.0011,2327.8,2326.7,11.99669987]
[1770041035534,0.0008028,2328.0,2326.8,11.99669987]
[1770041035738,0.0008028,2328.0,2327.0,11.99669987]
[1770041036614,0.00080482,2328.7,2327.1,13.07099835]
[1770041036935,0.00080482,2328.7,2327.3,11.99669987]
[1770041038217,12.47725794,2328.7,2327.3,11.99669987]
[1770041038510,12.47725794,2328.7,2327.3,13.07090603]
[1770041038714,12.47645312,2328.6,2327.4,1.82688169]
[1770041038938,12.47645312,2328.6,2327.5,0.901]
[1770041040816,12.47645312,2328.5,2327.5,0.901]
[1770041041031,12.47645312,2328.3,2327.5,0.901]
[1770041041220,12.47645312,2328.3,2326.8,0.0008032]
[1770041041435,12.47645312,2328.1,2326.8,0.0008032]
[1770041041631,12.47645312,2327.9,2326.8,0.0008032]
[1770041041935,12.47645312,2327.7,2326.8,0.0008032]
[1770041042323,12.47645312,2327.7,2326.5,0.901]
[1770041042519,12.47645312,2327.5,2326.5,0.901]
[1770041042732,12.47645312,2327.3,2326.5,0.901]
[1770041043035,1.14910961,2327.9,2326.5,13.97226581]
[1770041043240,0.0008032,2328.0,2326.5,13.97226581]
[1770041045552,0.0008032,2328.0,2326.6,11.99669987]
[1770041045854,0.0008032,2328.0,2326.7,13.39392645]
[1770041046055,0.0011,2327.8,2326.7,13.39392645]
[1770041047131,0.0011,2327.8,2326.8,13.07113686]
[1770041047337,0.0019032,2328.0,2326.9,11.99669987]
[1770041047549,0.0019032,2328.0,2327.1,11.99669987]
[1770041047789,0.00080482,2328.7,2327.2,12.89769987]
[1770041048079,0.92234055,2328.6,2327.2,12.89769987]
[1770041048255,0.00080482,2328.7,2327.2,12.89769987]
[1770041049200,12.47645312,2328.6,2327.2,0.901]
[1770041049497,12.47645312,2328.4,2327.2,2.3034914]
[1770041049796,12.47645312,2328.4,2327.2,1.22924364]
[1770041052206,12.47645312,2328.4,2327.2,2.30348871]
[1770041052916,12.47645312,2328.4,2327.2,1.22924364]
[1770041053286,13.39867225,2328.3,2327.3,0.901]
[1770041053599,12.47645312,2328.3,2327.3,1.13135364]
[1770041055479,12.47725794,2328.7,2327.3,2.20554771]
[1770041055681,0.00080482,2328.7,2327.3,14.20224758]
[1770041056001,0.00080482,2328.7,2327.4,13.84660709]
[1770041057215,0.92385288,2328.6,2327.4,13.84660709]
[1770041057400,0.00080482,2328.7,2327.5,1.07411385]
[1770041057589,0.92381594,2328.6,2327.5,1.07411385]
[1770041057786,0.00080482,2328.7,2327.5,1.07411385]
[1770041057979,0.00080482,2328.7,2327.6,1.92171764]
[1770041058179,0.92494183,2328.6,2327.6,1.92171764]
[1770041058477,0.00080482,2328.7,2327.6,1.92171764]
[1770041058678,0.9248752,2328.6,2327.6,1.92171764]
[1770041058875,0.00080482,2328.7,2327.6,13.91841751]
[1770041059142,0.00080482,2328.7,2327.7,13.49595301]
[1770041059430,0.00080482,2328.7,2327.9,11.99669987]
[1770041059735,0.00080482,2328.7,2328.0,0.901]
[1770041059907,0.00190482,2328.7,2328.0,0.901]
[1770041061929,0.0011,2328.8,2328.0,0.901]
[1770041061930,1.15101443,2329.4,2328.2,12.91887845]
[1770041062106,0.00190482,2329.4,2328.2,12.91887845]
[1770041062430,0.00190482,2329.4,2328.1,1.28976999]
[1770041062431,13.62985809,2329.3,2328.1,1.28976999]
[1770041062630,0.00190482,2329.4,2328.0,1.07386795]
[1770041062631,13.62985809,2329.2,2328.2,0.901]
[1770041062846,0.92431742,2329.1,2328.2,0.901]
[1770041063052,12.70567484,2329.2,2328.2,0.901]
[1770041063205,0.9243272,2329.1,2328.2,0.901]
[1770041063400,12.70567484,2329.2,2328.2,0.901]
[1770041063625,0.92419297,2329.1,2328.2,0.901]
[1770041063798,12.70567484,2329.2,2328.2,0.901]
[1770041064004,12.70567484,2329.2,2328.2,1.97477725]
[1770041064204,12.70567484,2329.2,2328.2,0.901]
[1770041064410,12.70567484,2329.2,2328.2,1.97476434]
[1770041064610,12.70567484,2329.2,2328.3,0.62701087]
[1770041065038,0.00190482,2329.4,2328.3,0.62701087]
[1770041065239,0.92401225,2329.3,2328.3,0.62701087]
[1770041065535,0.92401225,2329.2,2328.3,0.62701087]
[1770041065739,0.00190482,2329.4,2328.2,1.97477551]
[1770041065945,0.92380816,2329.3,2328.2,1.97477551]
[1770041066245,13.629483,2329.2,2327.8,0.04175041]
[1770041066444,10.74633029,2329.4,2327.8,0.04175041]
[1770041066445,12.70567484,2328.7,2327.8,0.04175041]
[1770041066742,12.70567484,2328.5,2327.8,0.04175041]
[1770041066949,13.629483,2328.4,2327.8,0.04175041]
[1770041067120,13.629483,2328.3,2327.8,0.04175041]
[1770041067320,1.14910961,2328.6,2327.5,0.00080523]
[1770041067321,13.85478445,2328.6,2327.5,0.00080523]
[1770041067530,0.92397393,2328.5,2327.5,0.00080523]
[1770041067726,13.85478445,2328.6,2327.5,0.00080523]
[1770041067727,13.62964877,2328.4,2327.5,0.00080523]
[1770041067926,0.92397393,2328.3,2327.5,0.00080523]
[1770041068126,12.70567484,2328.4,2327.5,0.00080523]
[1770041068329,0.92399439,2328.3,2327.5,0.00080523]
[1770041068517,12.70567484,2328.4,2327.5,0.00080523]
[1770041068723,0.92399427,2328.3,2327.5,0.00080523]
[1770041068932,12.70567484,2328.4,2327.5,0.00080523]
[1770041069212,0.92399426,2328.3,2327.5,0.00080523]
[1770041069415,12.70567484,2328.4,2327.5,0.00080523]
[1770041069648,0.92398283,2328.3,2327.5,0.00080523]
[1770041069849,12.70567484,2328.4,2327.5,0.00080523]
[1770041070055,0.92398275,2328.3,2327.5,0.00080523]
[1770041070229,12.70567484,2328.4,2327.5,0.00080523]
[1770041070430,0.92407349,2328.3,2327.5,0.00080523]
[1770041070626,12.70567484,2328.4,2327.5,0.00080523]
[1770041070832,0.92407354,2328.3,2327.5,0.00080523]
[1770041071137,12.70567484,2328.4,2327.5,0.00080523]
[1770041071441,0.92416072,2328.3,2327.5,0.00080523]
[1770041071651,12.70567484,2328.4,2327.5,0.00080523]
[1770041071863,0.92413414,2328.3,2327.5,0.00080523]
[1770041072147,12.70567484,2328.4,2327.5,0.00080523]
[1770041072323,0.92453842,2328.3,2327.5,0.00080523]
[1770041072528,12.70567484,2328.4,2327.5,0.00080523]
[1770041072753,0.92453842,2328.3,2327.5,0.00080523]
[1770041072956,12.70567484,2328.1,2326.3,0.001]
[1770041073138,0.92450897,2328.2,2326.3,0.001]
[1770041073139,13.85478445,2327.7,2326.3,13.99452603]
[1770041073315,0.92450897,2327.6,2326.3,12.91987845]
[1770041073521,0.92450897,2327.5,2326.3,12.91987845]
[1770041074214,0.92450897,2327.4,2326.7,0.901]
[1770041074414,13.85478445,2327.7,2326.7,0.901]
[1770041074721,13.6299594,2327.6,2326.7,0.901]
[1770041074947,0.92428456,2327.5,2326.7,0.901]
[1770041075143,13.6299594,2327.5,2326.7,0.901]
[1770041075423,13.6299594,2327.4,2326.7,0.901]
[1770041075619,12.70567484,2327.2,2326.5,0.001]
[1770041075832,13.6299594,2327.1,2326.5,0.001]
[1770041076032,0.92428456,2327.0,2326.5,0.001]
[1770041076331,12.70567484,2327.1,2326.5,0.001]
[1770041077340,13.85478445,2327.4,2326.5,0.001]
[1770041077542,0.92287523,2327.3,2326.5,0.001]
[1770041077843,0.92287523,2327.2,2326.5,0.001]
[1770041078066,13.85478445,2327.4,2326.5,0.001]
[1770041078261,0.92238992,2327.3,2326.5,0.001]
[1770041078461,0.92238992,2327.2,2326.5,0.001]
[1770041078673,0.92238992,2327.2,2326.0,1.97679632]
[1770041078674,12.70567484,2326.5,2325.1,0.001]
[1770041078835,0.92244234,2326.4,2325.1,0.001]
[1770041079038,0.92244234,2326.4,2325.3,1.07509094]
[1770041079258,13.85919375,2326.9,2325.4,1.0124021]
[1770041079561,13.85919375,2326.7,2325.4,1.0124021]
[1770041079743,12.70567484,2326.5,2325.4,1.0124021]
[1770041079948,0.92154518,2326.4,2325.4,1.0124021]
[1770041080143,13.62722002,2326.4,2325.4,1.0124021]
[1770041080367,10.39821446,2325.9,2325.1,0.001]
[1770041080549,0.92056501,2325.8,2324.4,17.31124819]
[1770041080755,14.24316757,2326.2,2324.5,12.91887845]
[1770041080756,13.85919375,2326.2,2324.5,12.91887845]
[1770041080942,0.92070327,2326.1,2324.6,12.91887845]
[1770041081143,0.92070327,2326.0,2324.7,1.29188785]
[1770041081350,12.70567484,2326.1,2324.7,1.29188785]
[1770041081549,12.70567484,2326.1,2324.4,1.16571912]
[1770041081766,12.70567484,2326.1,2324.4,0.09020693]
[1770041083551,12.70567484,2326.1,2324.4,14.08462691]
[1770041083760,12.70567484,2326.1,2324.4,14.08460878]
[1770041086080,12.80807484,2326.4,2324.4,14.08460878]
[1770041086284,12.70567484,2326.4,2324.7,1.07540757]
[1770041086451,12.70567484,2326.4,2324.6,13.99529733]
[1770041086977,12.70567484,2326.3,2324.6,13.99529733]
[1770041087476,12.70567484,2326.3,2324.6,13.99532661]
[1770041087862,12.08318617,2326.1,2324.6,0.001]
[1770041088081,12.08318617,2325.9,2324.6,0.001]
[1770041088396,0.901,2326.0,2324.6,12.8772532]
[1770041088554,12.98418617,2326.0,2324.6,0.001]
[1770041092367,12.08318617,2326.0,2324.6,12.53787315]
[1770041092571,12.08318617,2326.0,2324.7,1.25378731]
[1770041093169,12.08318617,2326.0,2324.3,16.83905866]
[1770041093378,12.08318617,2326.0,2324.4,1.07554216]
[1770041093775,12.08318617,2326.0,2324.3,16.83905866]
[1770041093776,12.08318617,2326.0,2324.3,13.61243165]
[1770041094008,12.08318617,2326.0,2324.4,1.07553391]
[1770041094170,11.90945939,2326.5,2324.5,12.53687315]
[1770041094375,0.2335703,2326.8,2324.6,14.97355963]
[1770041094376,11.80705939,2326.3,2324.6,14.97355963]
[1770041094968,11.80705939,2326.3,2324.6,1.36124071]
[1770041095304,11.80705939,2326.3,2324.3,12.53687315]
[1770041095305,13.62596225,2326.2,2324.3,12.53687315]
[1770041095607,12.70905939,2326.2,2324.3,12.53687315]
[1770041095903,12.70905939,2326.2,2324.4,1.0755383]
[1770041096080,12.70905939,2326.2,2324.4,1.07551875]
[1770041096395,12.70905939,2326.2,2324.2,5.20350395]
[1770041096396,11.80705939,2326.0,2324.3,1.07556125]
[1770041096600,11.80705939,2326.0,2324.4,0.62790652]
[1770041096810,11.80705939,2326.0,2324.4,13.16477967]
[1770041096985,11.80705939,2326.0,2324.4,0.62790652]
[1770041097394,11.80705939,2326.0,2324.2,1.9766371]
[1770041097585,11.80705939,2326.0,2324.2,14.51351025]
[1770041097912,1.15351891,2326.3,2324.2,14.51350362]
[1770041098109,11.80705939,2326.7,2324.7,12.53687315]
[1770041098612,11.80705939,2326.7,2324.9,12.53687315]
[1770041098780,11.80705939,2326.6,2325.0,14.8000966]
[1770041098976,11.80705939,2326.6,2325.0,2.26322345]
[1770041099181,11.80705939,2326.4,2325.0,0.902]
[1770041100011,12.72673464,2326.3,2325.0,0.902]
[1770041100210,11.80705939,2326.3,2325.0,0.902]
[1770041100427,0.0011,2325.8,2325.0,0.902]
[1770041102013,0.0011,2325.8,2324.6,12.53787315]
[1770041102014,0.0011,2325.8,2324.6,0.001]
[1770041102247,11.80815939,2325.8,2324.8,0.902]
[1770041102393,11.80705939,2325.6,2324.6,0.001]
[1770041102589,0.92302055,2325.7,2324.6,0.001]
[1770041102590,12.73007994,2325.5,2324.6,0.001]
[1770041102789,12.73007994,2325.4,2324.6,0.001]
[1770041103007,11.80705939,2325.4,2324.6,0.001]
[1770041104298,0.92427798,2325.3,2324.6,0.001]
[1770041104499,11.80705939,2325.4,2324.6,0.001]
[1770041104822,0.92430186,2325.3,2324.6,0.001]
[1770041105124,1.14955179,2325.8,2324.6,0.001]
[1770041105420,0.92497512,2325.7,2324.6,12.53787315]
[1770041105589,0.0011,2325.8,2324.7,1.25378731]
[1770041105794,12.73202684,2325.7,2324.6,0.001]
[1770041106022,0.92496745,2325.6,2324.6,0.001]
[1770041106229,0.92496745,2325.5,2324.6,0.001]
[1770041106438,0.92496745,2325.4,2324.6,0.001]
[1770041106733,1.14845179,2325.6,2324.6,0.001]
[1770041106734,0.92496745,2325.3,2324.6,0.001]
[1770041106943,0.92496745,2325.2,2324.6,0.001]
[1770041107096,12.73202684,2325.1,2324.4,0.001]
[1770041107289,0.92496745,2325.0,2324.4,0.001]
[1770041107494,12.95551118,2325.1,2324.4,0.001]
[1770041107495,0.92496745,2324.9,2324.4,0.001]
[1770041107691,0.92496745,2324.8,2324.4,0.001]
[1770041107937,0.92496745,2324.7,2324.4,0.001]
[1770041108236,0.92496745,2324.6,2324.4,0.001]
[1770041108526,0.92496745,2324.5,2323.9,0.902]
[1770041108729,11.80705939,2324.8,2323.9,0.902]
[1770041108730,0.92496745,2324.4,2323.9,0.902]
[1770041108926,0.92496745,2324.3,2323.9,0.902]
[1770041109129,1.14845179,2324.6,2323.9,0.902]
[1770041109337,2.34403617,2324.5,2323.9,0.902]
[1770041109514,0.92698993,2324.4,2323.9,0.902]
[1770041109711,0.92698993,2324.3,2323.9,0.902]
[1770041109929,0.92698993,2324.2,2323.2,13.43887315]
[1770041110124,1.41704624,2324.5,2323.2,13.43887315]
[1770041110339,0.92647191,2324.4,2323.3,1.34388732]
[1770041110639,0.92647191,2324.3,2323.2,0.902]
[1770041110840,1.14845179,2324.6,2323.4,13.61284767]
[1770041111163,1.53749273,2325.4,2323.6,12.53687315]
[1770041111462,13.34455212,2325.7,2323.8,12.53687315]
[1770041111738,11.80705939,2325.4,2323.8,12.53687315]
[1770041112536,13.34455212,2325.4,2323.8,12.53687315]
[1770041112840,13.34455212,2325.4,2323.5,0.57160955]
[1770041112841,11.80705939,2325.1,2323.6,1.07591668]
[1770041113745,1.53749273,2325.3,2323.6,13.61278983]
[1770041113925,1.53749273,2325.4,2324.0,0.001]
[1770041114113,1.53749273,2325.4,2324.1,0.902]
[1770041114441,1.53859273,2325.4,2324.1,0.902]
[1770041114817,1.53859273,2325.4,2324.1,1.97768017]
[1770041115015,1.53859273,2325.4,2324.1,1.97768213]
[1770041115354,0.0011,2325.4,2324.2,12.53687315]
[1770041115645,0.0011,2325.4,2324.3,1.45145404]
[1770041115955,0.0011,2325.4,2324.4,0.902]
[1770041116842,0.0011,2325.4,2324.5,1.0755001]
[1770041117814,0.0011,2325.4,2324.4,17.74100814]
[1770041117815,0.0011,2325.4,2324.4,0.902]
[1770041118261,0.0011,2325.4,2324.2,1.0756132]
[1770041118545,0.0011,2325.4,2324.5,0.902]
[1770041119326,11.80815939,2325.4,2324.5,0.902]
[1770041119644,0.0011,2325.4,2324.5,0.902]
[1770041120652,0.0011,2325.4,2324.6,1.07545384]
[1770041121917,0.0011,2325.4,2324.5,1.97747222]
[1770041122253,0.0011,2325.6,2324.5,14.09260154]
[1770041123013,2.30881267,2326.6,2324.5,14.09260154]
[1770041123014,13.67706532,2326.6,2324.9,12.11512932]
[1770041123255,0.92499673,2326.5,2325.1,12.11512932]
[1770041123550,0.0011,2326.6,2325.3,12.11512932]
[1770041124145,0.0011,2327.0,2325.4,12.11512932]
[1770041124384,0.0008,2327.8,2326.4,12.23043976]
[1770041124577,0.0008036,2328.0,2326.4,12.23043976]
[1770041124578,0.0008036,2328.0,2326.6,12.11512932]
[1770041124786,0.0008036,2328.0,2326.7,12.11512932]
[1770041124941,0.0008036,2328.0,2326.8,0.902]
[1770041126473,0.0008036,2328.0,2326.8,13.01712932]
[1770041126971,0.0008,2328.4,2327.1,12.11512932]
[1770041127177,0.00080523,2328.7,2327.2,13.43407672]
[1770041127586,0.00080523,2328.7,2327.4,12.11512932]
[1770041127869,0.00080523,2328.7,2327.5,13.01712932]
[1770041128953,0.00080523,2328.7,2327.6,1.0740677]
[1770041129267,12.13927782,2328.7,2327.7,1.83875254]
[1770041129445,12.13927782,2328.7,2327.5,1.97611196]
[1770041129642,12.13927782,2328.7,2327.5,0.902]
[1770041130369,12.13927782,2328.7,2327.5,1.97608985]
[1770041130370,0.0011,2327.8,2327.5,1.97608985]
[1770041130674,0.00080523,2328.7,2327.5,1.97608985]
[1770041131170,0.00080523,2328.7,2327.5,14.09121917]
[1770041131475,0.00080523,2328.7,2327.6,1.83876746]
[1770041131669,12.13927782,2328.7,2327.6,1.83876746]
[1770041131851,12.13927782,2328.7,2327.7,0.901]
[1770041132743,12.13927782,2328.7,2327.2,0.46259189]
[1770041133055,12.13927782,2328.7,2327.2,1.36359189]
[1770041133256,12.13927782,2328.7,2327.2,2.43783724]
[1770041133447,12.13927782,2328.7,2327.2,2.43784273]
[1770041133641,12.13927782,2328.7,2327.3,0.67348622]
[1770041133839,12.13927782,2328.7,2327.2,1.36359189]
[1770041133840,12.13927782,2328.7,2327.2,2.43783695]
[1770041134654,0.00080523,2328.7,2327.3,12.11512932]
[1770041135067,0.00080523,2328.7,2327.4,1.07416]
[1770041136160,0.00080523,2328.7,2327.4,13.18928932]
[1770041136367,0.00080523,2328.7,2327.5,1.74859293]
[1770041137058,0.00080523,2328.7,2327.6,13.18919702]
[1770041138760,0.00080523,2328.7,2327.6,1.0740677]
[1770041138966,0.00080523,2328.7,2327.5,2.82268045]
[1770041139164,0.00080523,2328.7,2327.6,0.901]
[1770041141163,12.13927782,2328.7,2327.6,0.901]
[1770041143065,12.13927782,2328.7,2327.4,1.07415538]
[1770041143066,12.13927782,2328.7,2327.4,0.001]
[1770041143375,0.0011,2328.5,2327.4,0.902]
[1770041143681,12.13957259,2328.5,2327.4,0.902]
[1770041145775,12.13957259,2328.5,2327.2,0.46259189]
[1770041147884,12.95003273,2328.3,2327.1,0.001]
[1770041148704,7.95003273,2328.3,2327.1,0.001]
[1770041149802,0.0011,2328.5,2327.1,0.001]
[1770041150308,0.91895262,2328.4,2327.1,0.001]
[1770041150623,0.0011,2328.5,2327.1,0.001]
[1770041150923,0.91895241,2328.4,2327.1,0.001]
[1770041151133,0.92061796,2328.3,2327.1,0.001]
[1770041151304,0.0011,2328.5,2327.1,0.001]
[1770041151619,0.92061615,2328.4,2327.1,0.001]
[1770041151810,0.92061615,2328.3,2327.1,0.001]
[1770041152015,12.96004061,2328.5,2327.1,0.001]
[1770041152199,0.92232284,2328.4,2327.1,0.001]
[1770041152391,0.92232284,2328.3,2327.1,0.001]
[1770041152596,0.92232284,2328.2,2327.1,0.001]
[1770041152793,12.96004061,2328.5,2327.1,0.001]
[1770041153018,0.9222854,2328.4,2327.1,0.001]
[1770041153194,0.9222854,2328.3,2327.1,0.001]
[1770041153393,0.9222854,2328.2,2327.1,0.001]
[1770041153594,0.0011,2328.5,2327.1,12.84779072]
[1770041153797,0.92362794,2328.4,2327.1,12.84779072]
[1770041154011,0.0011,2328.5,2327.1,12.84779072]
[1770041154221,0.92455836,2328.4,2327.3,12.84679072]
[1770041154537,0.0011,2328.5,2327.3,12.84679072]
[1770041155748,0.0011,2328.5,2327.4,13.92095072]
[1770041157247,0.0011,2328.5,2327.4,12.84679072]
[1770041157824,0.0011,2328.5,2327.4,13.92093427]
[1770041158145,0.0011,2328.5,2327.5,1.39209343]
[1770041158511,0.0011,2328.3,2327.5,1.39209343]
[1770041159448,0.0011,2328.3,2327.6,0.901]
[1770041160014,0.0011,2328.3,2327.5,1.39209343]
[1770041160215,0.0011,2328.3,2327.3,0.902]
[1770041160517,13.88378812,2328.2,2327.3,0.902]
[1770041160713,0.92484751,2328.1,2327.3,0.902]
[1770041160947,0.0011,2328.3,2327.3,0.902]
[1770041161150,0.92493683,2328.2,2327.3,0.902]
[1770041161446,0.92493683,2328.1,2327.3,0.902]
[1770041161650,0.0011,2328.3,2327.3,0.902]
[1770041161944,13.88398165,2328.2,2327.3,0.902]
[1770041162150,0.92504104,2328.1,2327.3,0.902]
[1770041162312,0.92504104,2328.0,2327.3,0.902]
[1770041162513,0.92504104,2328.0,2327.0,0.001]
[1770041162514,12.95894061,2327.8,2327.0,0.001]
[1770041162735,13.88398165,2327.7,2326.8,0.000804]
[1770041163046,0.92504104,2327.6,2326.8,0.000804]
[1770041163356,0.92504104,2327.5,2326.8,0.000804]
[1770041163511,12.95894061,2327.7,2326.8,0.000804]
[1770041163842,0.92504707,2327.6,2326.8,0.000804]
[1770041164042,0.92504707,2327.5,2326.8,0.000804]
[1770041164242,12.95894061,2327.7,2326.8,0.000804]
[1770041164452,13.88367521,2327.6,2326.8,0.000804]
[1770041164658,0.9247346,2327.5,2326.8,0.000804]
[1770041165528,0.0008,2328.2,2326.8,0.000804]
[1770041165727,0.92439665,2328.1,2326.8,0.000804]
[1770041165929,0.92439665,2328.0,2326.8,0.000804]
[1770041166252,0.92439665,2327.9,2326.8,0.000804]
[1770041166454,0.0008,2328.2,2326.8,0.000804]
[1770041166776,0.92444979,2328.1,2326.8,0.000804]
[1770041167069,0.92444979,2328.0,2326.8,0.000804]
[1770041167265,0.92444979,2327.9,2326.8,12.84759472]
[1770041167563,0.0008,2328.2,2326.8,12.84759472]
[1770041167736,13.88357474,2328.1,2326.8,0.000804]
[1770041167943,0.92463413,2328.0,2326.8,0.000804]
[1770041168270,0.92463413,2327.9,2326.8,0.000804]
[1770041168439,0.92463413,2327.8,2326.8,0.000804]
[1770041168636,12.95894061,2328.1,2326.8,0.000804]
[1770041168844,13.8839644,2328.0,2326.8,0.000804]
[1770041169157,13.8839644,2327.9,2326.8,0.000804]
[1770041169457,0.92502379,2327.8,2326.8,0.000804]
[1770041169655,0.92502379,2327.7,2326.8,0.000804]
[1770041169827,0.92502379,2327.6,2326.8,0.000804]
[1770041170031,1.53749273,2328.0,2326.8,0.000804]